Cogmind - Beta 16.1 @@@ ROGUE MODE // 2026.03.11 @ 19:13:14 Player: laeb2 Result: Destroyed by Quarantine Guard with Hypercooled Linear Accelerator Performance ------------- Evolutions (7) 3500 Regions Visited (15) 3000 Robots Destroyed (328) 1640 Value Destroyed (15834) 15834 Prototype IDs (21) 420 Alien Tech Used (6) 1200 Bonus (10287) 10287 TOTAL SCORE: 35881 Bonus ------- High Alert Combat Kills 3650 Follower Combat Kills 512 Entered Garrisons 200 Entered DSFs 1000 Used Core Reset Matrix 3000 Met Sigix 2000 Friendly Fire -75 Cogmind --------- Core Integrity 0/1300 Matter 263/300 Energy 311/350 System Corruption 10% Temperature Warm (186) Movement Treading (237) Ox1 Location -3/Quarantine Parts ------- > --- POWER (2) -------- Quantum Reactor > --- PROPULSION (6) --- Armored Medium Treads Armored Medium Treads Advanced Medium Treads Biometal Medium Treads > --- UTILITY (9) ------ Experimental Coolant Injector Huge Storage Unit Centrium Medium Armor Plating Centrium Medium Armor Plating Experimental Force Field > --- WEAPON (4) ------- Nova Cannon Hypervelocity Gauss Cannon > --- INVENTORY (25) --- Reinforced Antimatter Reactor Advanced Coolant Injector Matter Compressor (144) Experimental Targeting Computer Weapon Cycler Stasis Canceller Improved Phase Shifter Layered Medium Armor Plating Layered Medium Armor Plating Phase Armor Graphene Brace Experimental EM Shield Experimental EM Shield High-powered Tractor Beam EMDS Core Cannon Mass Driver Hypercooled Linear Accelerator Hypercooled Linear Accelerator Sigix Containment Pod Peak State ------------ > --- POWER ------------ Quantum Reactor Quantum Reactor > --- PROPULSION ------- Armored Medium Treads Advanced Medium Treads Advanced Medium Treads Biometal Medium Treads Centrium Heavy Treads > --- UTILITY ---------- Advanced Cooling System Experimental Coolant Injector Huge Storage Unit Kinecellerator Layered Medium Armor Plating Centrium Medium Armor Plating Phase Armor Graphene Brace > --- WEAPON ----------- Nova Cannon Hypervelocity Gauss Cannon Sigix Broadsword > --- INVENTORY -------- Neutrino Core Reinforced Antimatter Reactor Armored Medium Treads Advanced Coolant Injector Matter Compressor Experimental Targeting Computer Weapon Cycler Stasis Canceller Improved Phase Shifter Layered Medium Armor Plating Layered Medium Armor Plating Centrium Medium Armor Plating Experimental EM Shield High-powered Tractor Beam EMDS Core Cannon Mass Driver Hypercooled Linear Accelerator Hypercooled Linear Accelerator Sigix Containment Pod [Rating: 193] Favorites ----------- Power Reinforced Antimatter Reactor Engine Improved Ion Engine Power Core Neutrino Core Reactor Reinforced Antimatter Reactor Propulsion Light Treads Treads Light Treads Wheel Wheel Utility Huge Storage Unit Device Graphene Brace Storage Huge Storage Unit Processor Core Analyzer Hackware Hacking Suite Protection Centrium Medium Armor Plating Artifact Phase Armor Weapon Enhanced Autogun Energy Gun Small Laser Energy Cannon Advanced Beam Cannon Ballistic Gun Enhanced Autogun Ballistic Cannon Heavy Mass Driver Launcher Improved Grenade Launcher Special Weapon Improved Remote Datajack Slashing Weapon Sigix Broadsword Special Melee Weapon Advanced Datajack Build | -11 -10 -9 -8 -7 -7 -6 -6 -6 -6 -6 -5 -4 -4 -3 -3 ------- Run | Yrd Mat Mat Mat Fac DSF Fac Gar Fac Ext Cet Fac Fac DSF Res Qua Slots Evolved 14 | . . 2 2 2 . 2 . . . . 2 2 . 2 . Power 1 | . . . . . . . . . . . . . . 1 . Propulsion 4 | . . 1 . 1 . 1 . . . . 1 . . . . Utility 7 | . . . 1 1 . 1 . . . . 1 2 . 1 . Weapon 2 | . . 1 1 . . . . . . . . . . . . Parts Attached 178 | 8 6 2 32 1 6 8 44 2 6 7 10 2 2 7 35 Power 16 | 1 . 1 1 . 1 1 5 . 2 . . . . 1 3 Engine 9 | 1 . 1 1 . 1 1 4 . . . . . . . . Core 2 | . . . . . . . . . . . . . . 1 1 Reactor 5 | . . . . . . . 1 . 2 . . . . . 2 Propulsion 48 | 3 3 1 12 1 3 2 14 . . 2 1 . . . 6 Treads 38 | . 2 . 8 . 3 2 14 . . 2 1 . . . 6 Leg . | . . . . . . . . . . . . . . . . Wheel 10 | 3 1 1 4 1 . . . . . . . . . . . Hover . | . . . . . . . . . . . . . . . . Flight . | . . . . . . . . . . . . . . . . Utility 54 | 1 2 . 7 . 2 2 6 . 4 1 3 1 2 4 19 Device 21 | . . . 2 . . . 3 . 3 . 2 . 2 1 8 Storage 4 | 1 1 . 1 . . . . . . . . . . . 1 Processor 8 | . . . 2 . . 1 . . . . 1 . . 1 3 Hackware 2 | . 1 . . . . . . . . . . 1 . . . Protection 18 | . . . 2 . 2 1 3 . 1 1 . . . 2 6 Artifact 1 | . . . . . . . . . . . . . . . 1 Weapon 60 | 3 1 . 12 . . 3 19 2 . 4 6 1 . 2 7 Energy Gun 8 | 2 . . . . . . 4 . . 1 . . . 1 . Energy Cannon 10 | . . . 3 . . . 1 1 . 1 1 . . . 3 Ballistic Gun 27 | 1 1 . 5 . . 3 11 . . 1 5 . . . . Ballistic Cannon 6 | . . . . . . . 1 1 . . . . . 1 3 Launcher 6 | . . . 4 . . . 1 . . 1 . . . . . Special Weapon 1 | . . . . . . . . . . . . 1 . . . Impact Weapon . | . . . . . . . . . . . . . . . . Slashing Weapon 1 | . . . . . . . . . . . . . . . 1 Piercing Weapon . | . . . . . . . . . . . . . . . . Special Melee Weapon 1 | . . . . . . . 1 . . . . . . . . Unidentified Prototypes 25 | . . . 2 . . . . 1 3 4 1 1 . . 13 Corrupted Parts 7 | . . . . . . . . . . 4 3 . . . . System Corruption 35 | . . . . . . . . . . 23 12 . . . . Parts Lost 64 | . 1 1 11 . 5 1 23 . . 1 1 . 1 4 15 Power 6 | . . 1 . . 1 . 2 . . . . . . . 2 Propulsion 23 | . 1 . 6 . 1 1 10 . . . . . . . 4 Utility 13 | . . . . . 1 . 4 . . . . . . 3 5 Weapon 22 | . . . 5 . 2 . 7 . . 1 1 . 1 1 4 Highest Loss Streak 10 | . 1 1 4 . 4 1 10 . . 1 1 . 1 1 5 To Critical Strikes . | . . . . . . . . . . . . . . . . Average Backups 21 | 4 10 14 17 23 24 24 23 24 24 23 23 24 24 24 21 Power 1 | . 1 1 1 2 1 1 . 1 1 . 1 2 2 1 2 Propulsion 2 | 2 4 3 1 1 2 3 3 3 2 1 1 1 1 2 1 Utility 8 | . . 2 6 9 9 10 9 8 9 9 9 10 12 10 10 Weapon 8 | . 3 6 8 10 9 9 10 10 11 11 11 10 8 8 7 Tool/Special . | . . . . . . . . . . . . . . . . Unused Backups 52 | . 1 . 9 . 2 3 11 1 . 2 1 . 1 4 17 Power 4 | . . . 1 . . . 1 . . . . . . 1 1 Propulsion 4 | . . . . . . 1 1 . . 2 . . . . . Utility 25 | . 1 . 4 . . 1 5 . . . . . 1 3 10 Weapon 17 | . . . 4 . 1 1 4 1 . . 1 . . . 5 Tool/Special 2 | . . . . . 1 . . . . . . . . . 1 Average Slot Usage (%) 90 | . 96 98 99 92 92 96 95 80 80 80 75 76 82 84 84 Engine 4 | . 14 10 9 7 7 5 5 6 5 . . . . . . Reactor 1 | . . . . . . . . . . 6 5 5 5 4 4 Treads 22 | . 1 1 21 11 26 32 32 26 26 22 17 15 15 14 20 Wheel 2 | . 23 31 4 18 1 . . . . . . . . . . Device 10 | . . . 3 7 7 6 12 13 13 9 9 10 17 26 17 Storage 6 | . 14 11 9 7 7 6 6 6 6 6 5 5 5 4 4 Processor 5 | . . . 10 7 7 11 6 6 6 6 6 10 7 1 2 Hackware 1 | . 13 11 1 . . . . . . . . 4 2 . . Protection 5 | . . . 2 . 5 6 6 6 5 9 11 10 6 7 8 Energy Gun 1 | . 7 11 . . . . 2 . . . . . . . . Energy Cannon 2 | . . . 3 15 19 20 1 . . . 1 . . . 2 Ballistic Gun 14 | . 20 22 31 15 7 4 16 2 . 2 5 9 18 16 2 Ballistic Cannon 3 | . . . . . . . 1 10 13 7 5 5 . 1 8 Peak Build Rating 193 | 6 10 12 34 34 44 59 74 80 89 110 131 145 148 159 193 Average Rating 82 | 5 9 11 26 31 40 55 58 77 80 97 119 142 142 156 171 On Entrance 68 | . 6 10 12 29 31 42 58 74 80 86 110 123 144 143 155 Avg Prop Armor Cover (%) 9 | . . . 10 9 7 . . . . . . . . . . Naked Turns . | . . . . . . . . . . . . . . . . Heaviest Build 235 | 14 29 30 106 102 110 117 125 137 155 155 153 154 154 171 235 Greatest Support 240 | 26 40 36 60 36 96 124 150 150 150 180 240 240 240 240 240 Greatest Overweight (x) 9 | 1 2 . 9 5 2 . 1 . 1 1 . . . . 1 Average Overweight (x) . | . . . 1 3 1 . . . . . . . . . . Largest Inventory Capacity 25 | 8 15 15 25 25 25 25 25 25 25 25 25 25 25 25 25 Average Capacity 22 | 7 12 15 18 25 25 25 25 25 25 25 25 25 25 25 25 Most Carried 25 | 6 15 15 25 25 25 25 25 25 25 25 25 25 25 25 25 Average Carried 22 | 4 10 14 17 23 24 24 24 24 24 24 24 24 24 24 24 Final Capacity 25 | 8 15 15 25 25 25 25 25 25 25 25 25 25 25 25 25 Final Carried 25 | 6 15 15 24 25 24 24 25 25 25 25 25 25 25 25 24 Class Distribution -------------------- 45% | Scavenger-Gunner 43% | Scavenger-Tank 4% | Gunner 4% | Mutant Dominant Class ---------------- Mutant | -10/Materials Gunner | -9/Materials Scavenger-Gunner | -8/Materials Scavenger-Gunner | -7/Factory Gunner | -7/DSF Scavenger-Gunner | -6/Factory Scavenger-Gunner | -6/Garrison Scavenger-Tank | -6/Factory Scavenger-Tank | -6/Extension Scavenger-Tank | -6/Cetus Scavenger-Tank | -5/Factory Scavenger-Tank | -4/Factory Scavenger-Tank | -4/DSF Scavenger-Tank | -3/Research Scavenger-Tank | -3/Quarantine Resources | -11 -10 -9 -8 -7 -7 -6 -6 -6 -6 -6 -5 -4 -4 -3 -3 ----------- Run | Yrd Mat Mat Mat Fac DSF Fac Gar Fac Ext Cet Fac Fac DSF Res Qua Matter Collected 12793 | 319 313 218 3585 61 170 220 2281 140 1380 186 320 . 483 883 2234 Remotely 2370 | . . . . . . . . . 248 . . . 360 883 879 Salvage Created 16691 | 180 491 245 5709 111 465 866 2602 467 1485 268 226 . 731 1528 1317 Parts 853 | 15 35 33 342 4 21 26 124 10 44 13 11 . 38 77 60 Haulers Intercepted 14 | . 2 . 4 . . . . 1 4 . . . . 3 . Recyclers Shooed 11 | . . 1 8 1 . . . . 1 . . . . . . Parts Field Recycled . | . . . . . . . . . . . . . . . . Retrieved Matter . | . . . . . . . . . . . . . . . . Parts Self-Destructed . | . . . . . . . . . . . . . . . . Prevented . | . . . . . . . . . . . . . . . . Parts Restored . | . . . . . . . . . . . . . . . . Kills | -11 -10 -9 -8 -7 -7 -6 -6 -6 -6 -6 -5 -4 -4 -3 -3 ------- Run | Yrd Mat Mat Mat Fac DSF Fac Gar Fac Ext Cet Fac Fac DSF Res Qua Combat Hostiles Destroyed 227 | . 11 6 55 . 8 16 52 4 19 3 4 . 9 20 20 Melee 1 | . . . . . . . . . . . . . . . 1 Guns 124 | . 11 6 37 . . 4 39 . . . . . 8 19 . Cannons 69 | . . . 5 . 8 3 6 4 19 1 4 . 1 1 17 AOE 28 | . . . 13 . . 7 7 . . . . . . . 1 Classes Destroyed 20 | 2 5 2 7 . . 2 . . . . . . 1 . 1 Worker 15 | . 1 . 12 . . . . . . . . . . 2 . Builder 46 | . . 3 41 1 . . . . . . . . . 1 . Tunneler 6 | 5 . . 1 . . . . . . . . . . . . Hauler 14 | . 2 . 4 . . . . 1 4 . . . . 3 . Recycler 37 | 1 . . 29 1 . 1 . 1 3 . 1 . . . . Mechanic 1 | . . . . . . 1 . . . . . . . . . Operator 5 | . 1 1 2 . . . . . 1 . . . . . . Watcher 7 | . . 2 2 . . . 1 . 1 1 . . . . . Swarmer 44 | . 3 4 . . . 7 21 . . . . . . 7 2 Grunt 86 | . 8 2 36 . 3 5 9 3 8 . . . 4 3 5 Brawler 8 | . . . 2 . 1 . 4 1 . . . . . . . Duelist 3 | . . . 1 . . . . . 2 . . . . . . Protector 2 | . . . 1 . . . . . 1 . . . . . . Sentry 25 | . . . 7 . . 3 10 . 3 . 1 . . 1 . Specialist 11 | . . . 6 . 2 . . . . . . . 3 . . Hunter 14 | . . . 1 . 1 . 3 . 3 . 2 . . 4 . Programmer 6 | . . . . . . . . . . . . . 1 5 . Heavy 4 | . . . 1 . 1 . . . . . 1 . 1 . . Behemoth 8 | . . . . . . 1 5 . 2 . . . . . . Cetus Guard 3 | . . . . . . . . . . 3 . . . . . Quarantine Guard 9 | . . . . . . . . . . . . . . . 9 Lightning 3 | . . . . . . . . . . . . . . . 3 Fortress 1 | . . . . . . . . . . . . . . . 1 Best Kill Streak 20 | 4 3 7 20 2 5 8 10 4 7 4 4 . 4 13 8 Combat Bots Only 12 | . 3 2 8 . 5 8 10 2 7 3 3 . 4 12 8 Max Kills in Single Turn 4 | 1 2 2 4 1 1 3 2 2 1 2 2 . 2 2 1 Gunslinging 1 | . 1 . 1 . . . 1 . . . . . 1 1 . Exploded 3 | . . . 3 . . 3 2 . . . . . . . 1 Melee 1 | . . . . . . . . . . . . . . . 1 Uniques/NPCs Destroyed . | . . . . . . . . . . . . . . . . Combat | -11 -10 -9 -8 -7 -7 -6 -6 -6 -6 -6 -5 -4 -4 -3 -3 -------- Run | Yrd Mat Mat Mat Fac DSF Fac Gar Fac Ext Cet Fac Fac DSF Res Qua Hostile Shots Fired 1303 | . 29 15 163 . 61 83 336 6 86 18 74 . 46 183 203 Missed 359 | . 5 2 50 . 14 31 99 3 29 6 20 . 9 54 37 Hits 944 | . 24 13 113 . 47 52 237 3 57 12 54 . 37 129 166 Melee 3 | . . . . . 2 . 1 . . . . . . . . Projectile 941 | . 24 13 113 . 45 52 236 3 57 12 54 . 37 129 166 Critical Strikes 44 | . . . 5 . 2 2 10 . . 2 1 . 4 5 13 Actively Blocked 25 | . . . . . 1 . 2 . . 2 . . 4 5 11 Part Disruptions 1 | . . . . . . . . . . . . . 1 . . Damage Taken 21129 | . 248 128 2091 . 1093 596 3947 57 665 322 1488 . 1067 2535 6892 Core 2175 | . 42 . 216 . 131 49 297 . 44 . 84 . 93 90 1129 Absorbed by Shields 350 | . . . . . . . . . 157 . . . . . 193 Reduced by Siege Mode 603 | . . . . . . . . . 12 20 40 . 81 251 199 Redirected to Core 705 | . . . . . . . . . . . . . . . 705 Redirected to Shielding 102 | . . . . . 102 . . . . . . . . . . Ignored by Resistances 156 | . . . . . . 55 56 . . . . . . 45 . Regen/Repaired (Parts) 1152 | . . . . . . . . . 76 102 89 162 45 331 347 Core Remaining (%) 82 | 100 83 100 60 . 81 . . . . 54 91 . 91 . . Volleys Fired 849 | 14 47 17 243 3 24 24 197 10 64 19 21 . 17 50 99 Largest 4 | 2 2 3 4 4 4 4 4 1 2 1 1 . 4 4 4 Hottest 300 | 60 60 80 181 181 204 234 286 65 130 65 90 . 140 197 300 Shots Fired 2150 | 28 93 49 751 12 86 76 467 10 108 18 22 . 63 178 189 Gun 1559 | 28 93 49 665 6 30 18 420 . . 5 1 . 60 163 21 Cannon 530 | . . . 42 6 56 54 40 10 108 7 21 . 3 15 168 Launcher 61 | . . . 44 . . 4 7 . . 6 . . . . . Special . | . . . . . . . . . . . . . . . . Kinetic 1711 | 14 62 34 665 6 30 18 352 10 108 12 20 . 63 177 140 Thermal 351 | 6 31 15 42 6 56 54 105 . . . 2 . . 1 33 Explosive 55 | . . . 44 . . 4 7 . . . . . . . . Electromagnetic 33 | 8 . . . . . . 3 . . 6 . . . . 16 Robot Hit Streak 37 | 6 9 8 26 5 26 18 37 3 14 12 11 . 26 22 30 Robot Miss Streak 5 | 3 4 2 4 1 2 3 5 2 2 . 1 . 5 2 4 Penetration Max 1 | . . . . . . . . 1 1 . 1 . 1 1 1 Secondary Targets 25 | . 1 1 6 . . . 7 . . . . . 3 7 . Max Gunslinging Chain 2 | . 1 1 2 . . . 1 . . . . . 1 1 . Shots Hit Robots 1352 | 17 65 23 437 6 58 53 289 6 55 5 18 . 49 131 140 Core Hits 639 | 7 23 16 228 3 18 35 132 6 31 9 7 . 23 51 50 Critical Kills 29 | . . . 1 . . 2 3 . . . . . 2 6 15 Critical Parts Destroyed 44 | . 2 . 2 . . . 7 . . . . . 5 11 17 Critical Strikes 105 | . 2 . 3 . . 2 15 1 9 . 1 . 7 18 47 Meltdown 2 | . . . . . . 2 . . . . . . . . . Destroy 84 | . 2 . 3 . . . 14 . . . . . 7 17 41 Blast 13 | . . . . . . . 1 1 9 . 1 . . 1 . Corrupt 1 | . . . . . . . . . . . . . . . 1 Sever 5 | . . . . . . . . . . . . . . . 5 Melee Attacks 25 | . . . . . . . 5 . . . . . . . 20 Impact . | . . . . . . . . . . . . . . . . Slashing 20 | . . . . . . . . . . . . . . . 20 Piercing . | . . . . . . . . . . . . . . . . Sneak Attacks 5 | . . . . . . . 5 . . . . . . . . Combat Hostiles . | . . . . . . . . . . . . . . . . Follow-up Attacks . | . . . . . . . . . . . . . . . . Damage Inflicted 37094 | 202 858 317 9987 109 1088 1613 6531 512 4244 540 1089 . 1563 3935 4506 Guns 18200 | 202 837 317 6079 25 194 295 4875 . . . . . 1365 3609 402 Cannons 12166 | . . . 371 84 894 849 960 512 4244 84 1089 . 198 326 2555 Explosions 5158 | . . . 3537 . . 469 696 . . 456 . . . . . Melee 1549 | . . . . . . . . . . . . . . . 1549 Ramming 21 | . 21 . . . . . . . . . . . . . . Kinetic 25035 | 70 583 242 6079 25 194 295 4510 512 4244 84 1033 . 1563 3901 1700 Thermal 5133 | 65 254 75 371 84 894 849 1325 . . . 56 . . 34 1126 Explosive 4702 | . . . 3537 . . 469 696 . . . . . . . . Electromagnetic 654 | 67 . . . . . . . . . 456 . . . . 131 Impact . | . . . . . . . . . . . . . . . . Slashing 1549 | . . . . . . . . . . . . . . . 1549 Piercing . | . . . . . . . . . . . . . . . . Highest Corruption 30 | . 3 . 5 . 4 . 2 7 7 30 12 . . 2 10 Average Corruption 6 | . 3 . 3 . 3 . 2 4 7 19 11 . . 1 8 Corruption Purged . | . . . . . . . . . . . . . . . . Corruption Blocked 5 | . . . . . . . . . . . . . . 5 . Effects 207 | . 5 . 21 . 2 . 36 5 30 28 2 . . 6 72 Message Errors 46 | . 2 . 3 . 1 . 11 2 7 5 . . . 2 13 Matter Fused 49 | . . . 6 . . . 9 1 10 5 1 . . 1 16 Heat Flow Errors 23 | . . . 3 . . . 1 . 3 3 1 . . . 12 Energy Discharges 21 | . 1 . 3 . . . 5 1 2 5 . . . . 4 Parts Rejected 2 | . . . . . . . 1 . . . . . . . 1 Data Loss (minor) 31 | . 1 . 3 . 1 . 5 . 4 4 . . . . 13 Data Loss (major) 12 | . . . 1 . . . 1 1 2 2 . . . . 5 Misfires 14 | . 1 . . . . . 3 . 2 1 . . . 1 6 Alerts 4 | . . . 1 . . . . . . 1 . . . 2 . Weapon Failures 5 | . . . 1 . . . . . . 2 . . . . 2 Overload Shots 8 | . . . . . . . 8 . . . . . . . . Overflow Damage 463 | . . . 17 . 13 . 9 . 288 . 35 . . 3 98 Projectiles 347 | . . . . . 13 . . . 288 . 35 . . 3 8 Explosions 26 | . . . 17 . . . 9 . . . . . . . . Melee 90 | . . . . . . . . . . . . . . . 90 Knockbacks 18 | . . . . . . . . 1 5 . . . . 3 9 Impact . | . . . . . . . . . . . . . . . . Kinetic 18 | . . . . . . . . 1 5 . . . . 3 9 Secondary . | . . . . . . . . . . . . . . . . Self-Inflicted Damage 92 | . 10 . 39 . . . 40 . . 3 . . . . . Shots 4 | . . . 2 . . . 1 . . 1 . . . . . Rammed 1 | . 1 . . . . . . . . . . . . . . Targets Rammed 1 | . 1 . . . . . . . . . . . . . . Kicked . | . . . . . . . . . . . . . . . . Crushed . | . . . . . . . . . . . . . . . . Highest Temperature 371 | . 6 60 330 15 174 312 296 74 271 192 230 . 198 149 371 Average Temperature 76 | . 6 16 71 10 47 91 46 36 90 97 126 . 104 44 96 Received Heat Transfer 3063 | . 90 39 810 . 297 141 938 27 190 . . . 111 108 312 Effects 9 | . . . . . . . . . 4 . . . . . 5 Energy Bleed 1 | . . . . . . . . . 1 . . . . . . Interference 8 | . . . . . . . . . 3 . . . . . 5 Siege Activations 20 | . . . . . . . . . 3 1 1 . 4 5 6 Total Turns 538 | . . . . . . . . . 100 12 58 . 52 135 181 Longest Duration 62 | . . . . . . . . . 42 12 58 . 19 62 60 Martial Activations . | . . . . . . . . . . . . . . . . Shielding Activations . | . . . . . . . . . . . . . . . . Robots Disrupted . | . . . . . . . . . . . . . . . . Combat Hostiles . | . . . . . . . . . . . . . . . . Robots Corrupted 3 | . . . . . . . . . . 2 . . . . 1 Combat Hostiles 3 | . . . . . . . . . . 2 . . . . 1 Parts Fried 6 | . . . . . . . . . . 3 . . . . 3 Impact Corruptions . | . . . . . . . . . . . . . . . . Robots Melted 2 | . . . . . . 2 . . . . . . . . . Combat Hostiles 2 | . . . . . . 2 . . . . . . . . . Parts Melted 20 | . . . . 1 2 7 5 . 1 . . . . . 4 Heat Transferred 7817 | 150 575 175 666 148 1628 1517 2261 . . . 74 . . 37 586 Parts Sabotaged . | . . . . . . . . . . . . . . . . Parts Stolen . | . . . . . . . . . . . . . . . . Parts Stripped . | . . . . . . . . . . . . . . . . Power Chain Reactions . | . . . . . . . . . . . . . . . . Alert | -11 -10 -9 -8 -7 -7 -6 -6 -6 -6 -6 -5 -4 -4 -3 -3 ------- Run | Yrd Mat Mat Mat Fac DSF Fac Gar Fac Ext Cet Fac Fac DSF Res Qua Maximum Alert Level 5 | . . . 4 3 2 2 5 5 4 3 1 . 1 1 1 Low Security (%) 35 | 100 100 100 36 . . . . . . . . 100 56 52 79 Level 1 11 | . . . 2 . . 36 2 . . . 100 . 43 47 20 Level 2 16 | . . . 26 84 100 63 5 . 10 90 . . . . . Level 3 15 | . . . 16 15 . . 28 . 71 9 . . . . . Level 4 9 | . . . 17 . . . 16 41 18 . . . . . . Level 5 10 | . . . . . . . 46 58 . . . . . . . High Security . | . . . . . . . . . . . . . . . . Max Security . | . . . . . . . . . . . . . . . . Sterilizations 3 | . . . 1 . 1 . . . . . . . 1 . . Peak Influence 3017 | 10 102 136 1568 707 604 525 3017 1667 1315 724 293 114 205 389 240 Initial 1583 | . . 26 55 707 464 317 371 1583 796 724 289 114 . 114 199 Average 674 | 2 43 51 579 684 554 416 1616 1603 917 621 258 43 135 213 155 Influence Increases 9701 | 30 293 261 2329 16 190 446 2876 174 1148 121 144 . 215 691 767 Destroy 0b10 Robot/C 4740 | . 220 120 1080 . 160 320 1040 80 580 80 80 . 180 400 400 Destroy 0b10 Robot/NC 730 | 30 20 30 460 10 . 10 15 30 80 5 5 . 5 30 . Destroy Leader 824 | . 44 24 262 . 30 80 40 14 74 . 30 . 30 86 110 Allied During Kill 294 | . . . . . . . 10 35 243 4 2 . . . . Successful Hack 136 | . 8 11 . 5 . 14 21 5 . . . . . 72 . Disable Machine 480 | . . . 135 . . . 15 . 75 30 . . . 15 210 Anti-Garrison Action 1550 | . . . 150 . . . 1400 . . . . . . . . Destroy Structure 527 | . 1 1 182 1 . 22 185 10 51 2 12 . . 28 32 Partial Spotted 15 | . . 15 . . . . . . . . . . . . . Lose Combat Pursuer 405 | . . 60 60 . . . 150 . 45 . 15 . . 60 15 Influence Decreases 9580 | 30 230 193 904 909 249 519 390 1564 1481 898 428 233 10 541 1001 Entered New Map 5037 | . . 37 76 849 199 287 160 1434 831 570 228 119 . 91 156 Time Decay 3723 | 30 220 146 718 60 . 222 . 130 490 318 170 114 . 410 695 Lost Part 640 | . 10 10 110 . 50 10 230 . . 10 10 . 10 40 150 Lost Ally 180 | . . . . . . . . . 160 . 20 . . . . Squads Dispatched 38 | . 3 1 16 . 2 2 . 1 5 . 1 . 2 4 1 Investigation 7 | . 3 . 1 . . . . . 1 . . . . 1 1 Extermination 4 | . . . . . . 1 . 1 . . . . . 2 . Reinforcement 18 | . . 1 9 . 2 . . . 2 . 1 . 2 1 . Assault 5 | . . . 3 . . . . . 2 . . . . . . Garrison 4 | . . . 3 . . 1 . . . . . . . . . Intercept . | . . . . . . . . . . . . . . . . Searches Triggered . | . . . . . . . . . . . . . . . . Construction Impeded 3 | . . . 2 . . . . . 1 . . . . . . Haulers Reinforced . | . . . . . . . . . . . . . . . . Active Scanning Responses . | . . . . . . . . . . . . . . . . Cargo Convoy Interrupts . | . . . . . . . . . . . . . . . . Stealth | -11 -10 -9 -8 -7 -7 -6 -6 -6 -6 -6 -5 -4 -4 -3 -3 --------- Run | Yrd Mat Mat Mat Fac DSF Fac Gar Fac Ext Cet Fac Fac DSF Res Qua Distress Signals 9 | . . 2 2 . . 2 . 1 1 1 . . . . . Communications Jammed . | . . . . . . . . . . . . . . . . Distress Signals . | . . . . . . . . . . . . . . . . Times Spotted 284 | . 16 15 70 . 8 19 52 6 28 4 8 . 8 28 22 Peak Tracking Total 12 | . 3 5 9 . 4 5 7 3 12 5 5 . 4 9 4 Tactical Retreats 18 | . . 2 4 . . . 5 . 2 . 1 . . 3 1 Traps | -11 -10 -9 -8 -7 -7 -6 -6 -6 -6 -6 -5 -4 -4 -3 -3 ------- Run | Yrd Mat Mat Mat Fac DSF Fac Gar Fac Ext Cet Fac Fac DSF Res Qua Traps Triggered 17 | . 2 . 6 . 1 . 4 1 . . . . . 1 2 Indirectly . | . . . . . . . . . . . . . . . . Trap Hack Attempts . | . . . . . . . . . . . . . . . . Triggered . | . . . . . . . . . . . . . . . . Disarmed . | . . . . . . . . . . . . . . . . Reprogrammed . | . . . . . . . . . . . . . . . . Reused . | . . . . . . . . . . . . . . . . Traps Extracted . | . . . . . . . . . . . . . . . . Installed . | . . . . . . . . . . . . . . . . Triggered . | . . . . . . . . . . . . . . . . Machines | -11 -10 -9 -8 -7 -7 -6 -6 -6 -6 -6 -5 -4 -4 -3 -3 ---------- Run | Yrd Mat Mat Mat Fac DSF Fac Gar Fac Ext Cet Fac Fac DSF Res Qua Machines Disabled 44 | . . . 10 . . . 9 . 7 3 . . . 1 14 Max in Single Turn 3 | . . . 3 . . . 2 . 1 1 . . . 1 2 Garrison Access 1 | . . . 1 . . . . . . . . . . . . Garrison Relay 4 | . . . . . . . 4 . . . . . . . . Phase Generator 1 | . . . . . . . 1 . . . . . . . . Machines Repaired . | . . . . . . . . . . . . . . . . Machines Dismantled . | . . . . . . . . . . . . . . . . Machines Sabotaged . | . . . . . . . . . . . . . . . . Overloaded Fab Kills . | . . . . . . . . . . . . . . . . Hacking | -11 -10 -9 -8 -7 -7 -6 -6 -6 -6 -6 -5 -4 -4 -3 -3 --------- Run | Yrd Mat Mat Mat Fac DSF Fac Gar Fac Ext Cet Fac Fac DSF Res Qua Machines Accessed 33 | . 5 2 2 1 . 1 2 1 7 2 . 1 . 3 6 Terminals 26 | . 5 2 1 1 . . 2 1 7 2 . 1 . 1 3 Fabricators . | . . . . . . . . . . . . . . . . Repair Stations . | . . . . . . . . . . . . . . . . Recycling Units . | . . . . . . . . . . . . . . . . Scanalyzers 5 | . . . 1 . . . . . . . . . . 2 2 Garrison Access 2 | . . . . . . 1 . . . . . . . . 1 Total Hacks 80 | . 20 5 7 2 . 1 4 4 17 2 . 1 . 7 10 Successful 33 | . 11 3 3 1 . 1 2 1 2 1 . 1 . 4 3 Failed 46 | . 9 2 3 1 . . 2 3 15 1 . . . 3 7 Catastrophic 10 | . 1 1 . . . . . 1 3 1 . . . 1 2 Database Lockouts 1 | . . . 1 . . . . . . . . . . . . Manual 38 | . 18 3 6 . . . . 4 6 . . . . . 1 Terminals 68 | . 20 5 5 2 . . 4 4 17 2 . 1 . 3 5 Fabricators . | . . . . . . . . . . . . . . . . Repair Stations . | . . . . . . . . . . . . . . . . Recycling Units . | . . . . . . . . . . . . . . . . Scanalyzers 10 | . . . 2 . . . . . . . . . . 4 4 Garrison Access 2 | . . . . . . 1 . . . . . . . . 1 Terminal Hacks 14 | . 3 1 . 1 . . 2 . 2 1 . 1 . 1 2 Record 3 | . . . . . . . . . . 1 . . . . 2 Robot Analysis 2 | . 2 . . . . . . . . . . . . . . Open Door 2 | . . . . . . . 1 . 1 . . . . . . Open DSF 2 | . . . . 1 . . . . . . . 1 . . . Branch Access Points 1 | . . 1 . . . . . . . . . . . . . Emergency Access Points 1 | . . . . . . . 1 . . . . . . . . Alert Level 2 | . . . . . . . . . 1 . . . . 1 . Hauler Manifests 1 | . 1 . . . . . . . . . . . . . . Fabricator Hacks . | . . . . . . . . . . . . . . . . Repair Station Hacks . | . . . . . . . . . . . . . . . . Recycling Unit Hacks . | . . . . . . . . . . . . . . . . Scanalyzer 5 | . . . 1 . . . . . . . . . . 3 1 Retrieve Study 5 | . . . 1 . . . . . . . . . . 3 1 Garrison Access Hacks 1 | . . . . . . 1 . . . . . . . . . Unlock Access 1 | . . . . . . 1 . . . . . . . . . Unauthorized Hacks 13 | . 8 2 2 . . . . 1 . . . . . . . Terminals 13 | . 8 2 2 . . . . 1 . . . . . . . Botnet 7 | . 4 1 1 . . . . 1 . . . . . . . Operators 3 | . 1 1 1 . . . . . . . . . . . . Skim 3 | . 3 . . . . . . . . . . . . . . Fabricators . | . . . . . . . . . . . . . . . . Repair Stations . | . . . . . . . . . . . . . . . . Recycling Units . | . . . . . . . . . . . . . . . . Scanalyzers . | . . . . . . . . . . . . . . . . Garrison Access . | . . . . . . . . . . . . . . . . Data Cores Recovered 2 | . 1 . . . . . . 1 . . . . . . . Used 1 | . 1 . . . . . . . . . . . . . . Hacking Detections 29 | . 5 2 1 . . 1 2 1 7 1 . 1 . 3 5 Full Trace Events 2 | . 1 . . . . . . . 1 . . . . . . Feedback Events . | . . . . . . . . . . . . . . . . Feedback Blocked . | . . . . . . . . . . . . . . . . Robot Schematics Acquired . | . . . . . . . . . . . . . . . . Robots Built . | . . . . . . . . . . . . . . . . Authchips . | . . . . . . . . . . . . . . . . Time . | . . . . . . . . . . . . . . . . Total Robot Build Rating . | . . . . . . . . . . . . . . . . Part Schematics Acquired . | . . . . . . . . . . . . . . . . Parts Built . | . . . . . . . . . . . . . . . . Authchips . | . . . . . . . . . . . . . . . . Time . | . . . . . . . . . . . . . . . . Total Part Build Rating . | . . . . . . . . . . . . . . . . Part Studies Acquired 5 | . . . 1 . . . . . . . . . . 3 1 Parts Repaired . | . . . . . . . . . . . . . . . . Time . | . . . . . . . . . . . . . . . . Parts Recycled . | . . . . . . . . . . . . . . . . Recycled Matter . | . . . . . . . . . . . . . . . . Retrieved Matter . | . . . . . . . . . . . . . . . . Retrieved Components . | . . . . . . . . . . . . . . . . Parts Scanalyzed . | . . . . . . . . . . . . . . . . Part Schematics Acquired . | . . . . . . . . . . . . . . . . Parts Damaged . | . . . . . . . . . . . . . . . . Bothacking | -11 -10 -9 -8 -7 -7 -6 -6 -6 -6 -6 -5 -4 -4 -3 -3 ------------ Run | Yrd Mat Mat Mat Fac DSF Fac Gar Fac Ext Cet Fac Fac DSF Res Qua Used RIF Installer . | . . . . . . . . . . . . . . . . Robots Hacked 1 | . . . . . . . 1 . . . . . . . . Non-combat . | . . . . . . . . . . . . . . . . Combat 1 | . . . . . . . 1 . . . . . . . . Robot Hacks Applied 1 | . . . . . . . 1 . . . . . . . . parse_system 1 | . . . . . . . 1 . . . . . . . . Relay Couplers Released 18 | . . . 1 . . . 17 . . . . . . . . Machine Destruction 18 | . . . 1 . . . 17 . . . . . . . . Fabnet Peak Effective % . | . . . . . . . . . . . . . . . . Robots Rewired 7 | . . . . . . . 3 . 4 . . . . . . Allies Hacked . | . . . . . . . . . . . . . . . . Hacks Repelled . | . . . . . . . . . . . . . . . . Allies | -11 -10 -9 -8 -7 -7 -6 -6 -6 -6 -6 -5 -4 -4 -3 -3 -------- Run | Yrd Mat Mat Mat Fac DSF Fac Gar Fac Ext Cet Fac Fac DSF Res Qua Total Allies 10 | . . . . . . . 3 . 7 . . . . . . Largest Group 6 | . . . . . . . 3 3 6 1 1 . . . . Highest-Rated Group 379 | . . . . . . . 143 143 379 85 85 . . . . Highest-Rated Ally 159 | . . . . . . . 85 85 159 85 85 . . . . Initial Warlord ECA Mod 26 | . . . . . . 9 9 19 19 19 18 17 17 26 26 Total Orders . | . . . . . . . . . . . . . . . . Ally Attacks 95 | . . . . . . . . 3 83 1 8 . . . . Total Damage 2614 | . . . . . . . . 186 2028 54 346 . . . . Kills 23 | . . . . . . . . 4 18 1 . . . . . Allies Corrupted . | . . . . . . . . . . . . . . . . Allies Melted . | . . . . . . . . . . . . . . . . Intel | -11 -10 -9 -8 -7 -7 -6 -6 -6 -6 -6 -5 -4 -4 -3 -3 ------- Run | Yrd Mat Mat Mat Fac DSF Fac Gar Fac Ext Cet Fac Fac DSF Res Qua Active Infowar (turns) 381 | . . . . . . . . . . . . . . . 381 Optics 381 | . . . . . . . . . . . . . . . 381 Robot Analysis Total 2 | . 2 . . . . . . . . . . . . . . Derelict Logs Recovered . | . . . . . . . . . . . . . . . . Drone Launches . | . . . . . . . . . . . . . . . . Drone Recoveries . | . . . . . . . . . . . . . . . . Exploration | -11 -10 -9 -8 -7 -7 -6 -6 -6 -6 -6 -5 -4 -4 -3 -3 ------------- Run | Yrd Mat Mat Mat Fac DSF Fac Gar Fac Ext Cet Fac Fac DSF Res Qua Turns Passed 16059 | 165 532 342 3666 135 288 477 3306 267 1295 715 354 323 317 996 2881 Spaces Moved 6764 | 118 379 233 1371 88 84 207 1469 131 515 226 155 196 106 468 1018 Core 2 | 2 . . . . . . . . . . . . . . . Treads 5445 | . 7 . 873 . 74 207 1469 131 515 226 155 196 106 468 1018 Legs . | . . . . . . . . . . . . . . . . Wheels 1317 | 116 372 233 498 88 10 . . . . . . . . . . Hover . | . . . . . . . . . . . . . . . . Flight . | . . . . . . . . . . . . . . . . Fastest Speed 50 | 50 80 80 95 116 116 164 160 160 160 160 160 160 160 160 152 Average Speed 165 | 82 94 85 168 129 229 164 167 160 164 166 160 160 160 160 216 Slowest Speed 330 | 95 160 86 330 155 246 164 242 160 240 240 160 160 160 160 240 Overloaded Moves . | . . . . . . . . . . . . . . . . Propulsion Burnouts . | . . . . . . . . . . . . . . . . Robots Hopped . | . . . . . . . . . . . . . . . . Potential Cave-ins . | . . . . . . . . . . . . . . . . Cave-ins Triggered . | . . . . . . . . . . . . . . . . Exploration Rate (%) 41 | 4 63 22 60 3 53 8 97 5 70 74 4 8 81 20 87 Regions Visited 15 Branch Regions 3 Pre-discovered Areas . | . . . . . . . . . . . . . . . . Known Exits Taken 4 | . . . . 1 . 1 . . . . 1 1 . . . Unknown Exits Taken 8 | 1 1 1 1 . . . . 1 1 1 . . . 1 . Scrap Searched . | . . . . . . . . . . . . . . . . Spaces Dug 28 | . . . 12 . . . 2 . . 1 . . . 3 10 Terrain Destroyed 543 | . . . 202 . . 22 211 4 40 2 5 . 2 14 41 Melee . | . . . . . . . . . . . . . . . . Projectile 118 | . . . 1 . . . 11 4 40 2 5 . 2 12 41 AOE 423 | . . . 201 . . 22 200 . . . . . . . . Terrain Rammed . | . . . . . . . . . . . . . . . . Walls Destroyed . | . . . . . . . . . . . . . . . . Machines Disabled . | . . . . . . . . . . . . . . . . Actions | -11 -10 -9 -8 -7 -7 -6 -6 -6 -6 -6 -5 -4 -4 -3 -3 --------- Run | Yrd Mat Mat Mat Fac DSF Fac Gar Fac Ext Cet Fac Fac DSF Res Qua Total 10251 | 157 461 337 2374 101 129 294 2049 180 834 543 230 206 214 623 1519 Wait 1854 | 1 15 76 633 5 . 38 194 26 181 271 33 . 73 78 230 Move 6750 | 117 378 232 1370 87 83 207 1468 130 514 225 154 195 105 467 1018 Hop . | . . . . . . . . . . . . . . . . Pick Up 223 | 14 12 4 38 2 7 9 52 6 5 6 6 3 7 11 41 Fast Attach 38 | 1 . 1 2 . 2 1 7 . 2 5 . 2 1 . 14 Attach 109 | 6 2 3 13 1 4 5 28 3 2 2 4 3 3 7 23 Detach 10 | . . . . . . . 3 . . . 1 1 . . 5 Swap 147 | 1 4 2 52 3 3 4 32 . 6 3 7 . 2 4 24 Drop 165 | 3 2 2 23 . 6 6 36 5 7 12 4 2 6 6 45 Fire 849 | 14 47 17 243 3 24 24 197 10 64 19 21 . 17 50 99 Melee 25 | . . . . . . . 5 . . . . . . . 20 Ram 1 | . 1 . . . . . . . . . . . . . . Kick . | . . . . . . . . . . . . . . . . Crush . | . . . . . . . . . . . . . . . . Escape Stasis . | . . . . . . . . . . . . . . . . Rewire 80 | . . . . . . . 27 . 53 . . . . . . Trap . | . . . . . . . . . . . . . . . . Miscellaneous . | . . . . . . . . . . . . . . . . Route ------- -11/Scrapyard -10/Materials (discovered 3 exits: *Mat x2 / [*Min]) -9/Materials (discovered 2 exits: *Mat / Min) -8/Materials (discovered 2 exits: *Fac x2) -7/Factory -7/DSF -6/Factory -6/Garrison (discovered 3 exits: *Fac x3) -6/Factory -6/Extension (discovered 3 exits: [*Fac x2] / *Cet) -6/Cetus -5/Factory -4/Factory -4/DSF -3/Research -3/Quarantine (discovered 2 exits: [*Sec] / [*Frg]) History --------- Turn | Location | Event 16 | -11/Scrapyard | Discovered new exit (range 14) 166 | -11/Scrapyard | Entered Materials 314 | -10/Materials | Build established: Mutant 410 | -10/Materials | Discovered new exit (range 8) 509 | -10/Materials | Discovered new exit (range 5) 645 | -10/Materials | Discovered new exit (range 7) 698 | -10/Materials | Entered another Materials area 698 | -9/Materials | Evolved 2 slots: Propulsion x1, Weapon x1 862 | -9/Materials | Identified exit to Mines 1014 | -9/Materials | Build established: Gunner 1035 | -9/Materials | Discovered new exit (range 7) 1040 | -9/Materials | Entered another Materials area 1040 | -8/Materials | Evolved 2 slots: Utility x1, Weapon x1 1049 | -8/Materials | Central database locked down 1380 | -8/Materials | Lost 3 parts (2n1w) 1434 | -8/Materials | Build established: Scavenger-Gunner 2696 | -8/Materials | Garrison activated, responded to threat 3263 | -8/Materials | Discovered new exit (range 16) 3877 | -8/Materials | Discovered new exit (range 9) 3932 | -8/Materials | Lost 4 parts (3n1w) 4175 | -8/Materials | Destroyed 8 combat bots 4240 | -8/Materials | First assault squad dispatched 4316 | -8/Materials | Sterilization system engaged 4316 | -8/Materials | Non-combat units ordered to evacuate 4416 | -8/Materials | Combat units ordered to evacuate 4616 | -8/Materials | Ambient heat levels rising (+10) 4706 | -8/Materials | Entered Factory 4706 | -7/Factory | Evolved 2 slots: Propulsion x1, Utility x1 4841 | -7/Factory | Identified exit to DSF 4841 | -7/Factory | Entered DSF 4867 | -7/DSF | Additional patrols routed to DSF 4912 | -7/DSF | Discovered new exit (range 16) 5006 | -7/DSF | Sterilization system engaged 5026 | -7/DSF | Ambient heat levels rising (+10) 5027 | -7/DSF | Lost 4 parts (1p1n2w) 5041 | -7/DSF | Ambient heat levels rising (+10) 5056 | -7/DSF | Ambient heat levels rising (+10) 5071 | -7/DSF | Ambient heat levels rising (+10) 5086 | -7/DSF | Ambient heat levels rising (+10) 5101 | -7/DSF | Ambient heat levels rising (+10) 5116 | -7/DSF | Ambient heat levels rising (+10) 5129 | -7/DSF | Entered Factory 5129 | -6/Factory | Evolved 2 slots: Propulsion x1, Utility x1 5292 | -6/Factory | Spotted B-75 Beast 5293 | -6/Factory | Destroyed B-75 Beast 5328 | -6/Factory | Destroyed 8 combat bots 5554 | -6/Factory | Garrison activated, responded to threat 5606 | -6/Factory | Identified exit to Garrison 5606 | -6/Factory | Entered Garrison 5904 | -6/Garrison | Destroyed 10 combat bots 5917 | -6/Garrison | Spotted B-75 Beast 6001 | -6/Garrison | Destroyed B-75 Beast 6025 | -6/Garrison | Lost 10 parts (1p4n1u4w) 6140 | -6/Garrison | Triggered checkpoint 6302 | -6/Garrison | Triggered checkpoint 6392 | -6/Garrison | Build established: Scavenger-Tank 6393 | -6/Garrison | Phase Generator disabled 6466 | -6/Garrison | Triggered checkpoint 6573 | -6/Garrison | Triggered checkpoint 6692 | -6/Garrison | Discovered new exit (range 11) 6798 | -6/Garrison | Triggered checkpoint 6820 | -6/Garrison | Garrison Relay disabled 6904 | -6/Garrison | Triggered checkpoint 7137 | -6/Garrison | Build established: Scavenger-Gunner 7172 | -6/Garrison | Garrison Relay disabled 7187 | -6/Garrison | Garrison Relay disabled 7197 | -6/Garrison | Triggered checkpoint 7268 | -6/Garrison | Triggered checkpoint 7329 | -6/Garrison | Discovered new exit (range 14) 7333 | -6/Garrison | Spotted B-75 Beast 7333 | -6/Garrison | Spotted B-75 Beast 7363 | -6/Garrison | Destroyed B-75 Beast 7435 | -6/Garrison | Destroyed B-75 Beast 7638 | -6/Garrison | Triggered checkpoint 7750 | -6/Garrison | Triggered checkpoint 8241 | -6/Garrison | Garrison Relay disabled 8270 | -6/Garrison | Discovered new exit (range 9) 8288 | -6/Garrison | Spotted B-90 Cyclops 8293 | -6/Garrison | Spotted B-86 Titan 8590 | -6/Garrison | Destroyed B-90 Cyclops 8614 | -6/Garrison | Destroyed B-86 Titan 8661 | -6/Garrison | Rewired B-75 Beast 8912 | -6/Garrison | Entered Factory 8912 | -6/Factory | Accompanied by 3 allies 9140 | -6/Factory | Build established: Scavenger-Tank 9141 | -6/Factory | Discovered new exit (range 16) 9179 | -6/Factory | Entered Extension 9179 | -6/Extension | Accompanied by 3 allies 9458 | -6/Extension | Rescued a captive Derelict 9528 | -6/Extension | Rescued a captive Derelict 9629 | -6/Extension | Lost 3 allies 9815 | -6/Extension | Rescued A7 9885 | -6/Extension | Spotted B-75 Beast 9896 | -6/Extension | Destroyed B-75 Beast 9953 | -6/Extension | Spotted B-75 Beast 9958 | -6/Extension | Destroyed B-75 Beast 10053 | -6/Extension | Discovered new exit (range 3) 10208 | -6/Extension | Discovered new exit (range 16) 10209 | -6/Extension | Discovered new exit (range 15) 10229 | -6/Extension | First assault squad dispatched 10268 | -6/Extension | Disrupted transfer network 10299 | -6/Extension | Destroyed 7 combat bots 10305 | -6/Extension | Lost 5 allies 10319 | -6/Extension | Found Prototype Protection 10319 | -6/Extension | Identified Med. Regenerative Plating 10333 | -6/Extension | Extracted ID and sensor layout for unrecognized location from A7's data core 10474 | -6/Extension | Entered Cetus 10474 | -6/Cetus | Accompanied by 1 ally 10592 | -6/Cetus | Build established: Scavenger-Gunner 10670 | -6/Cetus | Spotted Cetus Guard 10670 | -6/Cetus | Spotted Cetus Guard 10673 | -6/Cetus | Spotted Cetus Guard 10678 | -6/Cetus | Spotted Cetus Guard 10686 | -6/Cetus | Destroyed Cetus Guard 10686 | -6/Cetus | Destroyed Cetus Guard 10686 | -6/Cetus | Allies destroyed Cetus Guard 10687 | -6/Cetus | Destroyed Cetus Guard 10722 | -6/Cetus | System corruption reached 10% 10846 | -6/Cetus | System corruption reached 30% 10982 | -6/Cetus | Build established: Scavenger-Tank 11036 | -6/Cetus | Found a strange terminal 11081 | -6/Cetus | Cetus Manufacturing Module disabled 11155 | -6/Cetus | Discovered new exit (range 15) 11189 | -6/Cetus | Entered Factory 11189 | -5/Factory | Accompanied by 1 ally 11189 | -5/Factory | Evolved 2 slots: Propulsion x1, Utility x1 11434 | -5/Factory | Discovered new exit (range 15) 11470 | -5/Factory | Identified exit to Factory 11476 | -5/Factory | System corruption reached 10% 11543 | -5/Factory | Entered another Factory area 11543 | -4/Factory | Evolved 2 slots: Utility x2 11572 | -4/Factory | Found Prototype Hackware 11573 | -4/Factory | Identified Exp. System Shield 11866 | -4/Factory | Identified exit to DSF 11866 | -4/Factory | Entered DSF 11917 | -4/DSF | Additional patrols routed to DSF 12012 | -4/DSF | Sterilization system engaged 12032 | -4/DSF | Ambient heat levels rising (+10) 12047 | -4/DSF | Ambient heat levels rising (+10) 12060 | -4/DSF | Discovered new exit (range 15) 12062 | -4/DSF | Ambient heat levels rising (+10) 12077 | -4/DSF | Ambient heat levels rising (+10) 12092 | -4/DSF | Ambient heat levels rising (+10) 12107 | -4/DSF | Ambient heat levels rising (+10) 12122 | -4/DSF | Ambient heat levels rising (+10) 12137 | -4/DSF | Ambient heat levels rising (+10) 12152 | -4/DSF | Ambient heat levels rising (+10) 12167 | -4/DSF | Ambient heat levels rising (+10) 12182 | -4/DSF | Ambient heat levels rising (+10) 12183 | -4/DSF | Entered Research 12183 | -3/Research | Evolved 2 slots: Power x1, Utility x1 12753 | -3/Research | Destroyed 12 combat bots 13034 | -3/Research | Discovered new exit (range 13) 13179 | -3/Research | Entered Quarantine 13256 | -3/Quarantine | Cryocooling Duct disabled 13260 | -3/Quarantine | Cryocooling Duct disabled 13271 | -3/Quarantine | Ambient heat levels rising (+20) 13271 | -3/Quarantine | Non-combat units ordered to evacuate 13275 | -3/Quarantine | Ambient heat levels rising (+20) 13275 | -3/Quarantine | Combat units ordered to evacuate 13322 | -3/Quarantine | Found Alien Energy Cannon 13322 | -3/Quarantine | Identified Core Cannon 13375 | -3/Quarantine | Quarantine Guard activated 13386 | -3/Quarantine | Found Alien Artifact 13386 | -3/Quarantine | Identified Terrabomb 13386 | -3/Quarantine | Used Terrabomb 13420 | -3/Quarantine | Spotted Quarantine Guard 13426 | -3/Quarantine | Found Alien Artifact 13426 | -3/Quarantine | Identified Core Reset Matrix 13426 | -3/Quarantine | Used Core Reset Matrix 13430 | -3/Quarantine | Detected hypermatrix surge 13430 | -3/Quarantine | Sensed 13 artifacts in vicinity 13443 | -3/Quarantine | Found Dimensional Node Initializer 13443 | -3/Quarantine | Initialized slip node 13447 | -3/Quarantine | Found Dimensional Node Initializer 13481 | -3/Quarantine | Initialized slip node 13492 | -3/Quarantine | Found Dimensional Node Initializer 13510 | -3/Quarantine | Spotted Quarantine Guard 13523 | -3/Quarantine | Destroyed Quarantine Guard 13523 | -3/Quarantine | Spotted Quarantine Guard 13523 | -3/Quarantine | Spotted Quarantine Guard 13538 | -3/Quarantine | Destroyed Quarantine Guard 13540 | -3/Quarantine | Destroyed Quarantine Guard 13567 | -3/Quarantine | Lost 5 parts (1n2u2w) 13665 | -3/Quarantine | Spotted Quarantine Guard 13676 | -3/Quarantine | Found Phase Armor 13679 | -3/Quarantine | Spotted Quarantine Guard 13693 | -3/Quarantine | Destroyed Quarantine Guard 13699 | -3/Quarantine | Destroyed Quarantine Guard 13891 | -3/Quarantine | Spotted Quarantine Guard 14017 | -3/Quarantine | Initialized slip node 14105 | -3/Quarantine | Met incapacitated Sigix Warrior 14105 | -3/Quarantine | Lockdown squad dispatched 14117 | -3/Quarantine | Acquired the access code to the Sigix quarantine chamber 14121 | -3/Quarantine | Unlocked Sigix quarantine chamber 14133 | -3/Quarantine | Found Sigix Containment Pod 14221 | -3/Quarantine | Spotted Quarantine Guard 14231 | -3/Quarantine | Spotted Lightning 14231 | -3/Quarantine | Spotted Lightning 14238 | -3/Quarantine | Destroyed Quarantine Guard 14257 | -3/Quarantine | Destroyed Lightning 14259 | -3/Quarantine | Spotted Lightning 14266 | -3/Quarantine | Destroyed Lightning 14275 | -3/Quarantine | System corruption reached 10% 14276 | -3/Quarantine | Destroyed Lightning 14310 | -3/Quarantine | Found Prototype Energy Cannon 14311 | -3/Quarantine | Identified EMDS 14316 | -3/Quarantine | Destroyed 8 combat bots 14383 | -3/Quarantine | Found Prototype Processor 14384 | -3/Quarantine | Identified Exp. Targeting Computer 14388 | -3/Quarantine | Found Prototype Device 14389 | -3/Quarantine | Identified Exp. EM Shield 14472 | -3/Quarantine | Found Exp. Targeting Computer 14606 | -3/Quarantine | Destroyed Quarantine Guard 14735 | -3/Quarantine | Found Sigix Broadsword 15088 | -3/Quarantine | Spotted Quarantine Guard 15118 | -3/Quarantine | Destroyed Quarantine Guard 15229 | -3/Quarantine | Found Prototype Processor 15229 | -3/Quarantine | Identified Spectral Analyzer 15461 | -3/Quarantine | Cryocooling Duct disabled 15476 | -3/Quarantine | Ambient heat levels rising (+20) 15578 | -3/Quarantine | Spotted Fortress 15611 | -3/Quarantine | Core integrity fell below 50% 15718 | -3/Quarantine | Core integrity fell below 20% 15741 | -3/Quarantine | Destroyed Fortress 15747 | -3/Quarantine | Found Prototype Device 15750 | -3/Quarantine | Identified Exp. Force Field 15759 | -3/Quarantine | Lost 5 parts (1p2n2u) 15761 | -3/Quarantine | Found Exp. EM Shield 15951 | -3/Quarantine | Build established: Scavenger-Mutant 16024 | -3/Quarantine | Discovered new exit (range 6) 16024 | -3/Quarantine | Discovered new exit (range 7) 16024 | -3/Quarantine | Spotted Quarantine Guard 16052 | -3/Quarantine | Destroyed Quarantine Guard 16060 | -3/Quarantine | Destroyed by Quarantine Guard with Hypercooled Linear Accelerator Last Messages --------------- 16037_ System corrupted: FCS attempts to trigger Nova Cannon. 16037_ System corrupted: Nova Cannon misfires. 16040_ Adv. Cooling System destroyed. 16042_ Destroyed Adv. Cooling System. 16042_ Neutrino Core destroyed. 16045_ Quarantine Guard Hcl. Linear Accelerator severed. 16046_ Sigix Broadsword destroyed. 16050_ HV Slug penetrates Wall. 16052_ Quarantine Guard suffers critical hit (Destroy). 16052_ Quarantine Guard destroyed. 16053_ Acquired 48 matter. 16054_ Quarantine Guard suffers critical hit (Destroy). 16057_ Hyp. Gauss Cannon destroyed. 16060_ Quarantine Guard suffers critical hit (Destroy). 16060_ Destroyed Adv. Medium Treads. Map ----- +----------------------------------------------------+ | ????????????????????????????????? | | ????????????????????????????????? | | ????????????????????????????????? | | ????????????????????????????????? | | ????????????????????????????????? | | ????????????????????????????????? | | ????????????????????????????????? | | ????????????????????????????????? | | ????????????????????????????????? | | ????????????????????????????????? | | ????????????????????????????????? | | ????????????????????????????????? | | ????????????????????????????????? | | ????????????????????????????????? | | ????????????????????????????????? | | ????????????????????????????????? | | ????????????????????????????????? | | ????????????????????????????????? | | ????????????????????????###???### | | #########################;#?? # | | ### < # | | /% # | | !/! # | | %%!Y%= # | | %%!/=% # | | %@]## < # | | #######################;####????? | | ????????????????????????????????? | | ????????????????????????????????? | | ????????????????????????????????? | | ????????????????????????????????? | | ????????????????????????????????? | | ????????????????????????????????? | | ????????????????????????????????? | | | | | | | | | | | | | | | | | | | | | | | | | | | | | | | | | +----------------------------------------------------+ Best States ------------- Heat Dissipation 91 Coolant Potential 120 Energy Generation 45 Energy Capacity 600 Matter Stores 300 Matter Capacity 300 Sight Range 24 Terrain Scan Density 10 Base Temperature (-) 200 Corruption Block 17 Armor Coverage 1350 Resistance: TH 30 Resistance: EM 75 Weapon Shielding 66 Weapon Cycling 15 Phase Shifting 10 Evasion (%) 50 Targeting Accuracy 12 Core Analysis 6 Recoil Reduction 6 Kinecelleration 30 Offensive Hacking 10 Defensive Hacking 16 Item Schematics ----------------- None Robot Schematics ------------------ None Fabricated ------------ Nothing Repaired ---------- Nothing Studied --------- None Alien Tech Used ----------------- Core Cannon Terrabomb Core Reset Matrix Dimensional Node Initializer Phase Armor Sigix Broadsword Achievements -------------- Nope Challenges ------------ None Game ------ Seed GravitonMultitargetingBox Manual? 0 Play Time 02:10:17 Cumulative 144.6 hours Start 2026.03.10 @ 22:05:47 End 2026.03.11 @ 19:13:14 Sessions 5 Manual Loads 0 Difficulty Rogue Special Mode None Game No. 166 Rogue 166 Adventurer 0 Explorer 0 Win Type - Total 2 Types 2/0/0/0/0/0/0/0/0/0 Lore% 76 Gallery% 63 Achievement% 48 Wizard Run 0 Options --------- Layout 1 ASCII 0 Keyboard 0 Movement Mouse Keybinds 0 Fullscreen 1 Font 32/SmallcapsGlow Map View 50x35 Zoom Use 0% Tactical HUD 1 Map Filters NONE Filters NONE Steam 1 RUN: 046602b0-823e-41df-a3bf-a87f6ab30aa3